Cogmind - Beta 14 @@@ ROGUE MODE // 2024.09.01 @ 21:11:58 Player: THN-L0C Result: Destroyed by AG-88619 with Assembled Focal Cannon Performance ------------- Evolutions (1) 500 Regions Visited (6) 1200 Robots Destroyed (19) 95 Value Destroyed (524) 524 Prototype IDs (11) 220 Alien Tech Used (0) 0 Bonus (1644) 1644 TOTAL SCORE: 4183 Bonus ------- Follower Combat Kills 44 Met Imprinter 300 Was Imprinted 300 Destroyed Z-Imprinter 1000 Cogmind --------- Core Integrity 0/400 Matter 180/300 Energy 46/100 System Corruption 0% Temperature Warm (161) Movement Walking (210) Ox1 Location -7/Deep Caves Parts ------- > --- POWER (1) -------- (None) > --- PROPULSION (2) --- Zionite Composite Leg I > --- UTILITY (4) ------ Large Storage Unit Zionite Weapon Casing Experimental Thermal Shield > --- WEAPON (2) ------- Zionite Phaser-S > --- INVENTORY (15) --- Zionite Light DM Reactor Zionite Light DM Reactor Zionite Composite Leg I Zionite Composite Leg I Enhanced Flexi-carbon Leg Zionite Glidesys I Zionite Biocell (600) Seismic Detector Beamcaster Zionite Laser-S Slug Cannon RU-N14's Throwing Claymores (2) RU-N14's Throwing Claymores (4) Ripper Phasing Sabre Peak State ------------ > --- POWER ------------ Zionite Light DM Reactor > --- PROPULSION ------- Zionite Composite Leg I Zionite Composite Leg I > --- UTILITY ---------- Large Storage Unit Zionite Weapon Casing Zionite Light Carapace Experimental Thermal Shield > --- WEAPON ----------- Zionite Phaser-S RU-N14's Throwing Claymores > --- INVENTORY -------- Zionite Light DM Reactor Zionite Light DM Reactor Zionite Composite Leg I Enhanced Flexi-carbon Leg Zionite Glidesys I Zionite Biocell Seismic Detector Beamcaster Zionite Laser-S RU-N14's Throwing Claymores Ripper Phasing Sabre Spear [Rating: 63] Favorites ----------- Power Ion Engine Engine Ion Engine Reactor Zionite Light DM Reactor Propulsion Light Treads Treads Light Treads Leg Zionite Composite Leg I Utility Large Storage Unit Device Seismic Detector Storage Large Storage Unit Processor Makeshift Salvage Targeting Computer Protection Hardened Light Armor Plating Weapon Grenade Launcher Energy Gun Beamcaster Energy Cannon Plasma Cannon Ballistic Gun Assault Rifle Ballistic Cannon Slug Cannon Launcher Grenade Launcher Special Weapon RU-N14's Throwing Claymores Slashing Weapon Phasing Sabre Build | -11 -10 -10 -9 -9 -7 -7 ------- Run | Yrd Mat Min Mat Min Zio Dee Slots Evolved 2 | . . . 2 . . . Power . | . . . . . . . Propulsion . | . . . . . . . Utility 2 | . . . 2 . . . Weapon . | . . . . . . . Parts Attached 46 | 7 1 . 3 . 5 30 Power 3 | 1 . . . . . 2 Engine 2 | 1 . . . . . 1 Core . | . . . . . . . Reactor 1 | . . . . . . 1 Propulsion 6 | 2 . . . . . 4 Treads 2 | 2 . . . . . . Leg 4 | . . . . . . 4 Wheel . | . . . . . . . Hover . | . . . . . . . Flight . | . . . . . . . Utility 18 | 2 1 . 2 . 2 11 Device 7 | 1 . . 1 . 1 4 Storage 5 | 1 1 . . . . 3 Processor 1 | . . . . . 1 . Hackware . | . . . . . . . Protection 5 | . . . 1 . . 4 Artifact . | . . . . . . . Weapon 19 | 2 . . 1 . 3 13 Energy Gun 5 | . . . . . . 5 Energy Cannon 1 | . . . . . . 1 Ballistic Gun 2 | 2 . . . . . . Ballistic Cannon 3 | . . . . . 1 2 Launcher 3 | . . . 1 . 1 1 Special Weapon 4 | . . . . . 1 3 Impact Weapon . | . . . . . . . Slashing Weapon 1 | . . . . . . 1 Piercing Weapon . | . . . . . . . Special Melee Weapon . | . . . . . . . Unidentified Prototypes 11 | . . . . . 1 10 Parts Lost 9 | . . . . . . 9 Power 2 | . . . . . . 2 Propulsion 2 | . . . . . . 2 Utility 3 | . . . . . . 3 Weapon 2 | . . . . . . 2 Highest Loss Streak 3 | . . . . . . 3 To Critical Strikes . | . . . . . . . Average Slot Usage (%) 99 | . 100 100 97 100 100 97 Engine 10 | . 14 14 11 11 11 6 Reactor 1 | . . . . . . 4 Treads 20 | . 28 28 22 22 22 10 Leg 2 | . . . . . . 11 Device 14 | . 14 14 20 22 14 11 Storage 11 | . 14 14 11 11 11 11 Processor 4 | . . . . . 7 5 Protection 9 | . . . 10 11 11 14 Energy Gun 1 | . . . . . . 5 Ballistic Gun 7 | . 28 28 21 11 1 . Ballistic Cannon 2 | . . . . . . 8 Launcher 6 | . . . . 11 11 3 Special Weapon 5 | . . . . . 9 1 Peak Build Rating 63 | 7 7 8 13 13 26 63 Average Rating 23 | 5 7 7 12 13 22 41 On Entrance 10 | . 7 7 8 13 13 23 Naked Turns . | . . . . . . . Heaviest Build 55 | 15 30 30 37 37 43 55 Greatest Support 52 | 40 40 40 40 40 40 52 Greatest Overweight (x) 3 | 3 . . . . 1 2 Average Overweight (x) . | . . . . . . . Largest Inventory Capacity 15 | 8 15 15 15 15 15 15 Average Capacity 14 | 7 8 15 15 15 15 15 Most Carried 15 | 1 4 6 7 7 15 15 Average Carried 11 | . 2 4 6 6 13 14 Final Capacity 15 | 8 15 15 15 15 15 15 Final Carried 15 | 1 4 6 6 7 15 15 Class Distribution -------------------- 99% | Mutant Dominant Class ---------------- Mutant | -10/Materials Mutant | -10/Mines Mutant | -9/Materials Mutant | -9/Mines Mutant | -7/Zion Mutant | -7/Deep Caves Resources | -11 -10 -10 -9 -9 -7 -7 ----------- Run | Yrd Mat Min Mat Min Zio Dee Matter Collected 853 | 251 73 18 . . 82 429 Remotely . | . . . . . . . Salvage Created 399 | 42 113 28 19 . . 197 Parts 31 | 4 8 4 6 . . 9 Haulers Intercepted . | . . . . . . . Recyclers Shooed . | . . . . . . . Parts Field Recycled . | . . . . . . . Retrieved Matter . | . . . . . . . Parts Self-Destructed . | . . . . . . . Prevented . | . . . . . . . Kills | -11 -10 -10 -9 -9 -7 -7 ------- Run | Yrd Mat Min Mat Min Zio Dee Combat Hostiles Destroyed 22 | . 3 2 3 . . 14 Guns 8 | . 3 2 . . . 3 Cannons 4 | . . . . . . 4 AOE 10 | . . . 3 . . 7 Classes Destroyed 5 | 1 1 1 . . . 2 Tunneler 3 | 2 . . 1 . . . Swarmer 5 | . . 2 3 . . . Grunt 3 | . 3 . . . . . Z-Light 7 | . . . . . . 7 Assembled 6 | . . . . . . 6 Best Kill Streak 5 | 1 2 2 4 . . 5 Combat Bots Only 5 | . 2 2 3 . . 5 Max Kills in Single Turn 4 | 1 1 1 4 . . 2 Gunslinging . | . . . . . . . Exploded 3 | . . . 3 . . 2 Melee . | . . . . . . . Uniques/NPCs Destroyed 1 | . . . . . . 1 Z-Imprinter (-7/Deep Caves) Combat | -11 -10 -10 -9 -9 -7 -7 -------- Run | Yrd Mat Min Mat Min Zio Dee Hostile Shots Fired 130 | . 6 12 15 . . 97 Missed 40 | . 3 2 6 . . 29 Damage Taken 2187 | . 34 77 91 . . 1985 Core 435 | . 10 7 10 . . 408 Absorbed by Shields . | . . . . . . . Redirected to Shielding 87 | . . . . . . 87 Ignored by Resistances 245 | . . . . . . 245 Core Remaining (%) 96 | 100 . 93 . . . . Volleys Fired 67 | 4 5 3 3 . . 52 Largest 2 | 2 2 2 2 . . 2 Hottest 123 | 40 40 40 50 . . 123 Shots Fired 101 | 8 10 6 6 . . 71 Gun 57 | 8 10 6 5 . . 28 Cannon 29 | . . . . . . 29 Launcher 11 | . . . 1 . . 10 Special 4 | . . . . . . 4 Kinetic 58 | 8 10 6 5 . . 29 Thermal 17 | . . . . . . 17 Explosive 15 | . . . 1 . . 14 Electromagnetic . | . . . . . . . Phasic 11 | . . . . . . 11 Robot Hit Streak 6 | 4 6 2 . . . 5 Robot Miss Streak 7 | 1 1 2 4 . . 7 Penetration Max . | . . . . . . . Secondary Targets . | . . . . . . . Shots Hit Robots 39 | 6 8 3 . . . 22 Core Hits 46 | 2 6 4 4 . . 30 Critical Kills . | . . . . . . . Critical Parts Destroyed . | . . . . . . . Critical Strikes 2 | . . . . . . 2 Sever 1 | . . . . . . 1 Intensify 1 | . . . . . . 1 Melee Attacks 1 | . . . . . . 1 Impact . | . . . . . . . Slashing 1 | . . . . . . 1 Piercing . | . . . . . . . Sneak Attacks . | . . . . . . . Combat Hostiles . | . . . . . . . Follow-up Attacks . | . . . . . . . Damage Inflicted 2437 | 73 106 83 145 3 . 2027 Guns 573 | 73 106 36 . . . 358 Cannons 281 | . . . . . . 281 Explosions 1442 | . . . 145 . . 1297 Melee . | . . . . . . . Ramming 50 | . . 47 . 3 . . Kinetic 496 | 73 106 36 . . . 281 Thermal 127 | . . . . . . 127 Explosive 1442 | . . . 145 . . 1297 Electromagnetic . | . . . . . . . Impact . | . . . . . . . Slashing 91 | . . . . . . 91 Piercing . | . . . . . . . Phasic 231 | . . . . . . 231 Highest Corruption . | . . . . . . . Average Corruption . | . . . . . . . Corruption Purged . | . . . . . . . Corruption Blocked . | . . . . . . . Overload Shots . | . . . . . . . Overflow Damage 55 | . . . . . . 55 Projectiles 16 | . . . . . . 16 Explosions 39 | . . . . . . 39 Melee . | . . . . . . . Knockbacks 4 | . . 1 . . . 3 Impact 1 | . . 1 . . . . Kinetic 3 | . . . . . . 3 Secondary . | . . . . . . . Self-Inflicted Damage . | . . . . . . . Shots . | . . . . . . . Rammed 13 | . . 12 . 1 . . Targets Rammed 13 | . . 12 . 1 . . Kicked . | . . . . . . . Crushed . | . . . . . . . Highest Temperature 291 | . . . . . . 291 Average Temperature 96 | . . . . . . 96 Received Heat Transfer 426 | . 18 . 9 . . 399 Siege Activations . | . . . . . . . Robots Corrupted . | . . . . . . . Combat Hostiles . | . . . . . . . Parts Fried . | . . . . . . . Impact Corruptions . | . . . . . . . Robots Melted . | . . . . . . . Combat Hostiles . | . . . . . . . Parts Melted . | . . . . . . . Heat Transferred 222 | . . . . . . 222 Parts Sabotaged . | . . . . . . . Parts Stolen . | . . . . . . . Parts Stripped . | . . . . . . . Power Chain Reactions . | . . . . . . . Alert | -11 -10 -10 -9 -9 -7 -7 ------- Run | Yrd Mat Min Mat Min Zio Dee Peak Influence 129 | 10 91 84 129 49 . . Initial 49 | . 6 35 . 49 . . Average 34 | 3 42 33 24 49 . . Maximum Alert Level . | . . . . . . . Low Security (%) 100 | 100 100 100 100 100 . . Level 1 . | . . . . . . . Level 2 . | . . . . . . . Level 3 . | . . . . . . . Level 4 . | . . . . . . . Level 5 . | . . . . . . . High Security . | . . . . . . . Max Security . | . . . . . . . Squads Dispatched 2 | . 1 . 1 . . . Investigation . | . . . . . . . Extermination . | . . . . . . . Reinforcement 2 | . 1 . 1 . . . Assault . | . . . . . . . Garrison . | . . . . . . . Intercept . | . . . . . . . Searches Triggered . | . . . . . . . Construction Impeded . | . . . . . . . Haulers Reinforced . | . . . . . . . Active Scanning Responses . | . . . . . . . Cargo Convoy Interrupts . | . . . . . . . Stealth | -11 -10 -10 -9 -9 -7 -7 --------- Run | Yrd Mat Min Mat Min Zio Dee Distress Signals 3 | . 1 1 1 . . . Communications Jammed . | . . . . . . . Distress Signals . | . . . . . . . Times Spotted 36 | . 5 8 7 . . 16 Peak Tracking Total 6 | . 4 3 5 . . 6 Tactical Retreats 3 | . 1 1 1 . . . Traps | -11 -10 -10 -9 -9 -7 -7 ------- Run | Yrd Mat Min Mat Min Zio Dee Traps Triggered . | . . . . . . . Indirectly . | . . . . . . . Trap Hack Attempts . | . . . . . . . Triggered . | . . . . . . . Disarmed . | . . . . . . . Reprogrammed . | . . . . . . . Reused . | . . . . . . . Traps Extracted . | . . . . . . . Installed . | . . . . . . . Triggered . | . . . . . . . Machines | -11 -10 -10 -9 -9 -7 -7 ---------- Run | Yrd Mat Min Mat Min Zio Dee Machines Disabled 1 | . . . . . . 1 Max in Single Turn 1 | . . . . . . 1 Machines Repaired . | . . . . . . . Machines Dismantled . | . . . . . . . Machines Sabotaged . | . . . . . . . Overloaded Fab Kills . | . . . . . . . Hacking | -11 -10 -10 -9 -9 -7 -7 --------- Run | Yrd Mat Min Mat Min Zio Dee Machines Accessed 2 | . 1 1 . . . . Terminals 2 | . 1 1 . . . . Fabricators . | . . . . . . . Repair Stations . | . . . . . . . Recycling Units . | . . . . . . . Scanalyzers . | . . . . . . . Garrison Access . | . . . . . . . Total Hacks 5 | . 3 2 . . . . Successful 1 | . 1 . . . . . Failed 4 | . 2 2 . . . . Catastrophic . | . . . . . . . Database Lockouts . | . . . . . . . Manual 8 | . 3 . . . 5 . Terminals 5 | . 3 2 . . . . Fabricators . | . . . . . . . Repair Stations . | . . . . . . . Recycling Units . | . . . . . . . Scanalyzers . | . . . . . . . Garrison Access . | . . . . . . . Terminal Hacks . | . . . . . . . Fabricator Hacks . | . . . . . . . Repair Station Hacks . | . . . . . . . Recycling Unit Hacks . | . . . . . . . Scanalyzer . | . . . . . . . Garrison Access Hacks . | . . . . . . . Unauthorized Hacks 1 | . 1 . . . . . Terminals 1 | . 1 . . . . . Skim 1 | . 1 . . . . . Fabricators . | . . . . . . . Repair Stations . | . . . . . . . Recycling Units . | . . . . . . . Scanalyzers . | . . . . . . . Garrison Access . | . . . . . . . Data Cores Recovered . | . . . . . . . Used . | . . . . . . . Hacking Detections 2 | . 1 1 . . . . Full Trace Events . | . . . . . . . Feedback Events . | . . . . . . . Feedback Blocked . | . . . . . . . Robot Schematics Acquired 3 | . . . . . 3 . Robots Built . | . . . . . . . Authchips . | . . . . . . . Time . | . . . . . . . Total Robot Build Rating . | . . . . . . . Part Schematics Acquired 14 | . . . . . 14 . Parts Built . | . . . . . . . Authchips . | . . . . . . . Time . | . . . . . . . Total Part Build Rating . | . . . . . . . Parts Repaired . | . . . . . . . Time . | . . . . . . . Parts Recycled . | . . . . . . . Recycled Matter . | . . . . . . . Retrieved Matter . | . . . . . . . Retrieved Components . | . . . . . . . Parts Scanalyzed . | . . . . . . . Part Schematics Acquired . | . . . . . . . Parts Damaged . | . . . . . . . Bothacking | -11 -10 -10 -9 -9 -7 -7 ------------ Run | Yrd Mat Min Mat Min Zio Dee Used RIF Installer . | . . . . . . . Robots Hacked . | . . . . . . . Non-combat . | . . . . . . . Combat . | . . . . . . . Robot Hacks Applied . | . . . . . . . Relay Couplers Released . | . . . . . . . Fabnet Peak Effective % . | . . . . . . . Robots Rewired . | . . . . . . . Allies Hacked . | . . . . . . . Hacks Repelled . | . . . . . . . Allies | -11 -10 -10 -9 -9 -7 -7 -------- Run | Yrd Mat Min Mat Min Zio Dee Total Allies 8 | . . 2 . . 6 . Largest Group 6 | . . 2 1 . 6 3 Highest-Rated Group 342 | . . 49 18 . 342 227 Highest-Rated Ally 96 | . . 31 18 . 96 96 Total Orders . | . . . . . . . Ally Attacks 40 | . . 10 . . . 30 Total Damage 702 | . . 124 . . . 578 Kills 2 | . . 1 . . . 1 Allies Corrupted . | . . . . . . . Allies Melted . | . . . . . . . Intel | -11 -10 -10 -9 -9 -7 -7 ------- Run | Yrd Mat Min Mat Min Zio Dee Robot Analysis Total . | . . . . . . . Derelict Logs Recovered 4 | . . 2 . 1 1 . Drone Launches . | . . . . . . . Drone Recoveries . | . . . . . . . Exploration | -11 -10 -10 -9 -9 -7 -7 ------------- Run | Yrd Mat Min Mat Min Zio Dee Turns Passed 5621 | 86 156 957 137 214 2696 1375 Spaces Moved 2841 | 42 86 580 77 133 1173 750 Core 12 | 12 . . . . . . Treads 2323 | 30 86 580 77 133 1173 244 Legs 506 | . . . . . . 506 Wheels . | . . . . . . . Hover . | . . . . . . . Flight . | . . . . . . . Fastest Speed 50 | 50 160 160 160 160 160 110 Average Speed 185 | 146 160 160 160 160 227 152 Slowest Speed 320 | 200 160 160 160 160 240 320 Overloaded Moves . | . . . . . . . Propulsion Burnouts . | . . . . . . . Robots Hopped . | . . . . . . . Cave-ins Triggered . | . . . . . . . Exploration Rate (%) 47 | 3 19 97 14 45 89 63 Regions Visited 6 Branch Regions 4 Pre-discovered Areas 2 | . . . . 1 1 . Known Exits Taken 1 | . . . 1 . . . Unknown Exits Taken 5 | 1 1 1 . 1 1 . Scrap Searched 6 | . . 2 . . 4 . Spaces Dug 1 | . . . . . . 1 Terrain Destroyed 88 | . . . 6 . . 82 Melee 1 | . . . . . . 1 Projectile 22 | . . . . . . 22 AOE 65 | . . . 6 . . 59 Terrain Rammed . | . . . . . . . Walls Destroyed . | . . . . . . . Machines Disabled . | . . . . . . . Actions | -11 -10 -10 -9 -9 -7 -7 --------- Run | Yrd Mat Min Mat Min Zio Dee Total 3070 | 55 94 596 84 134 1204 903 Wait 57 | 2 1 . . . 3 51 Move 2835 | 41 85 579 76 132 1172 750 Hop . | . . . . . . . Pick Up 35 | 1 2 2 2 1 16 11 Fast Attach 9 | 7 . . . . . 2 Attach 8 | . . . 2 . . 6 Detach 1 | . . . . . . 1 Swap 29 | . 1 . 1 . 5 22 Drop 15 | . . . . . 8 7 Fire 67 | 4 5 3 3 . . 52 Melee 1 | . . . . . . 1 Ram . | . . . . . . . Kick . | . . . . . . . Crush 13 | . . 12 . 1 . . Escape Stasis . | . . . . . . . Rewire . | . . . . . . . Trap . | . . . . . . . Miscellaneous . | . . . . . . . Route ------- -11/Scrapyard -10/Materials -10/Mines (discovered 3 exits: [*Mat x2] / [*Sub]) -9/Materials (discovered 2 exits: *Min x2) -9/Mines (discovered 2 exits: [*Mat] / *Zio) -7/Zion (discovered 2 exits: [*Dee] / [*Pro]) -7/Deep Caves History --------- Turn | Location | Event 15 | -11/Scrapyard | Discovered new exit (range 15) 87 | -11/Scrapyard | Entered Materials 213 | -10/Materials | Discovered new exit (range 8) 243 | -10/Materials | Entered Mines 293 | -10/Mines | Discovered new exit (range 7) 303 | -10/Mines | Build established: Mutant 330 | -10/Mines | Discovered new exit (range 7) 459 | -10/Mines | Learned location of 1 exit from Materials 587 | -10/Mines | Learned Materials interactive machine intel 1061 | -10/Mines | Discovered new exit (range 13) 1200 | -10/Mines | Entered Materials 1200 | -9/Materials | Accompanied by 1 ally 1200 | -9/Materials | Evolved 2 slots: Utility x2 1201 | -9/Materials | Identified exit to Mines 1202 | -9/Materials | Loaded intel: 18 interactive machine locations 1313 | -9/Materials | Discovered exit to Mines (range 9) 1337 | -9/Materials | Entered Mines 1393 | -9/Mines | Learned location of Storage (-8) 1396 | -9/Mines | YI-UF0 nonchalantly dropped a Grenade Launcher on the ground 1420 | -9/Mines | Learned location of 1 exit from Lower Caves 1441 | -9/Mines | Discovered new exit (range 11) 1535 | -9/Mines | A Derelict revealed a hidden shortcut to a safe place 1551 | -9/Mines | Entered Zion 1689 | -7/Zion | Discovered new exit (range 16) 1787 | -7/Zion | Learned location of Armory (-4) 1830 | -7/Zion | Found Prototype Special Weapon 1832 | -7/Zion | Found Prototype Special Weapon 1835 | -7/Zion | Found Prototype Special Weapon 1838 | -7/Zion | Found Prototype Special Weapon 1843 | -7/Zion | Identified RU-N14's Throwing Claymores (x4) 2159 | -7/Zion | Learned Factory terminal intel 2836 | -7/Zion | Given A8's code to call for help 2937 | -7/Zion | Acquired unknown access codes intercepted by a Zionite 3852 | -7/Zion | Met Imprinter 3895 | -7/Zion | Imprinted 3898 | -7/Zion | Declared Zion's savior 4186 | -7/Zion | Opened final containment barrier to the Deep Caves 4206 | -7/Zion | Enhanced Grunt warped into view, answering call for help 4208 | -7/Zion | Enhanced Grunt warped into view, answering call for help 4226 | -7/Zion | Discovered new exit (range 3) 4226 | -7/Zion | Saw the warning signs outside the Deep Caves entrance 4247 | -7/Zion | Entered Deep Caves 4247 | -7/Deep Caves | Accompanied by 6 allies 4662 | -7/Deep Caves | Attacked by Z-Imprinter 4686 | -7/Deep Caves | Destroyed Z-Imprinter 4720 | -7/Deep Caves | Lost 3 parts (1u2w) 4858 | -7/Deep Caves | Z-Facility disabled 4902 | -7/Deep Caves | Found Prototype Device 4902 | -7/Deep Caves | Identified Exp. Thermal Shield 4929 | -7/Deep Caves | Found Prototype Protection 4929 | -7/Deep Caves | Identified Zio. Weapon Casing 4937 | -7/Deep Caves | Found Zio. Weapon Casing 5477 | -7/Deep Caves | Core integrity fell below 50% 5580 | -7/Deep Caves | Spotted AG-88619 5616 | -7/Deep Caves | Core integrity fell below 20% 5622 | -7/Deep Caves | Destroyed by AG-88619 with Assembled Focal Cannon Last Messages --------------- 05459_ as-10138 knocked back. 05460_ Zio. Light Carapace destroyed. 05462_ Slug penetrates Machine. 05462_ Machine disabled. 05469_ as-30359 destroyed. 05479_ as-10138 destroyed. 05482_ Destroyed Asb. Hover Unit. 05482_ as-25600 knocked back. 05485_ as-25600 destroyed. 05488_ Acquired 8 matter. 05493_ Acquired 11 matter. 05497_ Acquired 8 matter. 05600_ AG-88619: "DSI9AT1D G8OHIBQ29FWG 26R186 QD12WHW8W33 TDK1 81FTS" 05607_ AG-88619 suffers critical hit (Intensify). 05611_ Destroyed Prototype Device. 05612_ AG-88619 GOLEM Unit beginning Prototype Device integration. 05613_ AG-88619 Prototype Device integration complete. 05615_ Zio. Composite Leg I destroyed. 05618_ Zio. Light DM Reactor destroyed. 05618_ Adv. Heat Sink destroyed. Map ----- +----------------------------------------------------+ | ??????????????????????????????# ?????## | | ??????????????????????????????# ????#" | | ?????????????????????????? ???# ##### | | ???????????????????????? ???# # | | ????????????????????? * ???# ## | | ??????????????????? ???## ## #? | | ?????????????????= ! ??????## ## | | ????????????????? #????## " # | | ??????????????? ! * ! #??### """ | | ?????????????/ #??# | | ??????????? ! #??# | | ??????????? ##?# | | ?????????? ! #?# | | ?????????? / M #?## | | ????????? = #??## ## | | ????????? b ##### #### | | ????????? = ##??# | | ????????""" #???## | | ????????" = = ##???### | | ?????????" ### ## ##????? | | ????????" #?# #### ###??? | | ?????????" ### #??# #??? | | ????????" ;G; ## #?## #?? | | ????????" #### #; ;# ### #??#######?? | | ????????""" ???????# #; ;###?## ##??????????? | | ???????????????????#??#@;#????######???????????? | | ??????????????????????##;#?????????????????????? | | | | | | | | | | | | | | | | | | | | | | | | | | | | | | | | | | | | | | | | | | | | | | | +----------------------------------------------------+ Best States ------------- Heat Dissipation 47 Energy Generation 27 Energy Capacity 700 Matter Stores 300 Matter Capacity 300 Sight Range 16 Terrain Scan Density 10 Armor Coverage 400 Resistance: TH 30 Weapon Shielding 100 Evasion (%) 55 Recoil Reduction 2 Salvage Targeting 4 Item Schematics ----------------- Imp. Deuterium Engine | -7/Zion | Archive Matter Compressor | -7/Zion | Archive Fission Core | -7/Zion | Archive Coolant Injector | -7/Zion | Archive Imp. Reaction Control System | -7/Zion | Archive Imp. Salvage Targeting Computer | -7/Zion | Archive Imp. Arc Projector | -7/Zion | Archive Imp. Corruption Screen | -7/Zion | Archive Power Amplifier | -7/Zion | Archive Imp. Shield Generator | -7/Zion | Archive Adv. Melee Analysis Suite | -7/Zion | Archive Spear | -7/Zion | Archive Arm. Leg | -7/Zion | Archive Armor Integrity Analyzer | -7/Zion | Archive Robot Schematics ------------------ T-07 Excavator | -7/Zion | Archive R-06 Scavenger | -7/Zion | Archive S-27 Virus | -7/Zion | Archive Fabricated ------------ Nothing Alien Tech Used ----------------- None Achievements -------------- None Challenges ------------ None Game ------ Seed RemoteNetworkBeamcaster Manual? 0 Play Time 00:25:47 Cumulative 184.3 hours Start 2024.09.01 @ 20:48:43 End 2024.09.01 @ 21:11:58 Sessions 1 Manual Loads 0 Difficulty Rogue Special Mode None Game No. 157 Rogue 157 Adventurer 0 Explorer 0 Win Type - Total 1 Types 0/0/0/1/0/0/0/0/0 Lore% 63 Gallery% 72 Achievement% 53 Wizard Run 0 Options --------- Layout 2 ASCII 0 Keyboard 1 Movement Vi Keybinds 0 Fullscreen 1 Font 32/SmallcapsGlow Map View 77x44 Zoom Use 0% Tactical HUD 1 Map Filters NONE Filters NONE Steam 1 RUN: bec2aa8f-f231-4b38-88ff-ba966902f82a